[Event "GER-ch-Seniors-50 2019"]
[Site "Radebeul"]
[Date "2019.05.03"]
[Round "8.6"]
[White "Bohnstorff, Michael"]
[Black "Pirrot, Dieter"]
[Result "0-1"]
[ECO "A40"]
[WhiteElo "2044"]
[BlackElo "2334"]
[Annotator "NA"]
[PlyCount "128"]
[EventDate "2019.04.26"]
[EventType "swiss"]
[EventCountry "GER"]
[SourceTitle "playchess.com"]
[Source "ChessBase"]
[SourceQuality "1"]
[TimeControl "40/5400+30:1800+30"]

1. d4 {[%emt 0:00:00]} e6 {[%emt 0:00:00]} 2. Nf3 {[%emt 0:01:12]} f5 {[%emt 0:00:00]} 3. g3 {[%emt 0:01:45]} Nf6 {[%emt 0:00:01]} 4. Bg2 {[%emt 0:00:07]} Be7 {[%emt 0:00:14]} 5. c4 {[%emt 0:03:43]} d6 {[%emt 0:00:17]} 6. Nc3 {[%emt 0:02:16]} O-O {[%emt 0:00:22]} 7. O-O {[%emt 0:00:30]} Ne4 {[%emt 0:00:08]} 8. Qc2 {[%emt 0:05:05]} Nxc3 {[%emt 0:00:11]} 9. Qxc3 {[%emt 0:01:18]} a5 {[%emt 0:00:24]} 10. b3 {[%emt 0:02:50]} Nc6 {[%emt 0:00:28]} 11. Bb2 {[%emt 0:03:37]} Bf6 {[%emt 0:00:11]} 12. Rad1 {[%emt 0:01:52] A96: Classical Dutch: Fluid Systems: Early deviations} Qe7 {[%emt 0:01:50]} 13. e3 {[%emt 0:13:52]} (13. Rfe1 e5 14. dxe5 dxe5 15. e4 fxe4 16. Nd2 Bg4 17. Ra1 Nd4 18. Kh1 Bg5 19. Nxe4 Bf3 {½-½ (75) Jianu,V (2555)-Gallagher,J (2507) Legnica 2013}) 13... e5 {[%emt 0:02:42]} 14. dxe5 {[%emt 0:06:40]} dxe5 {[%emt 0:00:14]} 15. Qc1 $146 {[%emt 0:00:55]} ({Predecessor:} 15. Qc2 Be6 16. Rd2 g5 17. Rfd1 Qg7 18. Ne1 e4 19. Bxf6 Qxf6 {1-0 (52) Decosse,J (2440)-Leruste,G (2270) Le Port Marly 2012}) 15... e4 {[%emt 0:10:57]} 16. Bxf6 {[%emt 0:07:56]} Rxf6 {[%emt 0:00:30]} 17. Nd4 {[%emt 0:00:47]} Nb4 {[%emt 0:05:22]} 18. a4 {[%emt 0:05:52]} c6 {[%emt 0:06:14]} 19. Qc3 $11 {[%emt 0:00:34]} Bd7 {[%emt 0:01:51]} 20. Rfe1 {[%emt 0:05:36]} Rd8 {[%emt 0:16:09]} 21. Bf1 {[%emt 0:00:47]} c5 {[%emt 0:05:16]} 22. Nb5 {[%emt 0:02:11]} b6 {[%emt 0:00:29]} 23. Rd2 {[%emt 0:04:45]} Bxb5 {[%emt 0:02:09]} 24. Rxd8+ {[%emt 0:00:52]} Qxd8 {[%emt 0:00:09]} 25. cxb5 {[%emt 0:00:39]} h6 {[%emt 0:05:24]} 26. Bc4+ {[%emt 0:02:04]} Kh7 {[%emt 0:00:08]} 27. Kg2 {[%emt 0:02:23]} Qe7 {[%emt 0:03:57]} 28. Rd1 {[%emt 0:01:38]} Rd6 {[%emt 0:00:12]} 29. Rxd6 {[%emt 0:03:02]} Qxd6 {[%emt 0:00:08]} 30. Be2 {[%emt 0:00:12]} Nd3 {[%emt 0:02:58]} 31. f4 {[%emt 0:03:27]} exf3+ {[%emt 0:05:34]} 32. Bxf3 {[%emt 0:00:08]} Ne5 {[%emt 0:01:04]} 33. e4 {[%emt 0:03:17]} g6 {[%emt 0:03:05]} 34. exf5 {[%emt 0:00:38]} gxf5 {[%emt 0:00:08]} 35. Be2 {[%emt 0:02:24]} Kg6 {[%emt 0:02:32]} 36. h3 {[%emt 0:01:08]} Qd4 {[%emt 0:02:19]} 37. Qc2 {[%emt 0:02:32]} Kg5 {[%emt 0:03:30]} 38. Qc1+ {[%emt 0:00:53]} f4 {[%emt 0:02:44]} 39. gxf4+ {[%emt 0:05:23]} Qxf4 {[%emt 0:00:13]} 40. Qd1 {[%emt 0:02:26]} Qe4+ {[%emt 0:03:28]} 41. Kh2 {[%emt 0:32:34]} Qe3 {[%emt 0:40:10]} 42. Kg2 {[%emt 0:00:00]} Kf4 {[%emt 0:00:00]} 43. Qf1+ {[%emt 0:00:00]} Ke4 {[%emt 0:00:00]} 44. Qb1+ {[%emt 0:00:00]} Kd4 {[%emt 0:00:00]} 45. Qa1+ {[%emt 0:00:00]} Qc3 {[%emt 0:00:00]} 46. Qg1+ {[%emt 0:00:00]} Ke4 {[%emt 0:00:00]} 47. Qd1 {[%emt 0:00:00]} Ke3 {[%emt 0:00:00]} 48. Kg3 {[%emt 0:00:00]} Qd4 {[%emt 0:00:00]} 49. Qf1 {[%emt 0:00:00]} Qc3 {[%emt 0:00:00]} 50. Qd1 {[%emt 0:00:00]} Ng6 {[%emt 0:00:00]} 51. Bg4 {[%emt 0:00:00]} Qe5+ {[%emt 0:00:00]} 52. Kg2 {[%emt 0:00:00]} Nf4+ {[%emt 0:00:00]} 53. Kf1 {[%emt 0:00:00]} Qe4 {[%emt 0:00:00]} 54. Qe1+ {[%emt 0:00:54]} Kd4 {[%emt 0:00:00]} 55. Qxe4+ {[%emt 0:02:46]} Kxe4 {[%emt 0:00:00]} 56. Kf2 {[%emt 0:00:24]} Nd3+ {[%emt 0:00:00]} 57. Kg3 {[%emt 0:00:11]} Nc1 {[%emt 0:01:20]} 58. Be6 {[%emt 0:00:32]} Kd4 {[%emt 0:03:14]} 59. Kg4 {[%emt 0:00:20]} Kc3 {[%emt 0:00:19]} 60. Kh5 {[%emt 0:00:20]} Nxb3 {[%emt 0:00:33]} 61. Kxh6 {[%emt 0:00:58]} Nd4 {[%emt 0:00:14]} 62. Bg4 {[%emt 0:00:34]} Kd2 {[%emt 0:00:35]} 63. Bh5 {[%emt 0:02:59]} c4 {[%emt 0:00:27]} 64. Bg6 {[%emt 0:00:51]} Nf3 0-1

[Event "GER-ch-Seniors-50 2019"]
[Site "Radebeul"]
[Date "2019.05.04"]
[Round "9.3"]
[White "Schmidt, Gerhard"]
[Black "Nekrasov, Mihail"]
[Result "1/2-1/2"]
[ECO "E04"]
[WhiteElo "2077"]
[BlackElo "2277"]
[Annotator "RC"]
[PlyCount "50"]
[EventDate "2019.04.26"]
[EventType "swiss"]
[EventCountry "GER"]
[SourceTitle "playchess.com"]
[Source "ChessBase"]
[SourceQuality "1"]
[TimeControl "40/5400+30:1800+30"]

1. Nf3 {[%emt 0:00:00]} d5 {[%emt 0:00:00]} 2. d4 {[%emt 0:00:00]} Nf6 {[%emt 0:00:03]} 3. c4 {[%emt 0:00:19]} e6 {[%emt 0:00:22]} 4. g3 {[%emt 0:00:25]} dxc4 {[%emt 0:00:15]} 5. Bg2 {[%emt 0:00:30]} Nc6 {[%emt 0:00:12]} 6. Qa4 {[%emt 0:00:36]} Bb4+ {[%emt 0:00:14]} 7. Bd2 {[%emt 0:00:33]} Nd5 {[%emt 0:00:11]} 8. Bxb4 {[%emt 0:00:43]} Ndxb4 {[%emt 0:00:12]} 9. O-O {[%emt 0:01:10]} Rb8 {[%emt 0:05:13]} 10. Nc3 {[%emt 0:01:07]} a6 {[%emt 0:01:49]} 11. Ne5 {[%emt 0:00:52]} O-O {[%emt 0:00:23]} 12. Nxc6 {[%emt 0:00:29]} Nxc6 {[%emt 0:00:09]} 13. Bxc6 {[%emt 0:00:26]} bxc6 {[%emt 0:00:08]} 14. Qxc4 {[%emt 0:00:20]} Qd6 {[%emt 0:00:25]} 15. Qc5 {[%emt 0:17:33]} Qxc5 {[%emt 0:18:47]} 16. dxc5 {[%emt 0:00:10]} Rxb2 {[%emt 0:00:05]} 17. Rab1 {[%emt 0:01:08]} Rc2 {[%emt 0:00:37]} 18. Rfc1 {[%emt 0:00:58]} Rxc1+ {[%emt 0:00:40]} 19. Rxc1 {[%emt 0:00:07]} e5 {[%emt 0:00:00]} 20. Rb1 {[%emt 0:01:33]} Be6 {[%emt 0:00:00]} 21. Rb7 {[%emt 0:01:08]} Rc8 {[%emt 0:00:00]} 22. f4 {[%emt 0:03:04]} exf4 {[%emt 0:02:33]} 23. gxf4 {[%emt 0:00:17]} f5 {[%emt 0:00:07]} 24. Kf2 {[%emt 0:03:59]} Kf7 {[%emt 0:03:10]} 25. a3 {[%emt 0:01:22]} Ke7 {[%emt 0:10:46]} 1/2-1/2

[Event "GER-ch-Seniors-50 2019"]
[Site "Radebeul"]
[Date "2019.05.04"]
[Round "9.4"]
[White "Pirrot, Dieter"]
[Black "Mueller, Rudolf"]
[Result "1-0"]
[ECO "B00"]
[WhiteElo "2334"]
[BlackElo "2071"]
[Annotator "NA RC"]
[PlyCount "79"]
[EventDate "2019.04.26"]
[EventType "swiss"]
[EventCountry "GER"]
[SourceTitle "playchess.com"]
[Source "ChessBase"]
[SourceQuality "1"]
[TimeControl "40/5400+30:1800+30"]

{[%evp 13,79,51,32767,32767,32767,32767,58,49,70,39,69,62,81,76,65,62,82,58,88,22,132,21,108,136,291,276,343,293,327,343,340,331,325,418,357,307,279,151,879,990,777,828,937,1158,1359,1042,1049,1263,1141,1052,1073,1124,1120,754,1227,1650,2031,2362,2734,2410,1942,540,32767,5297,29968,32767,29988,29989]} 1. e4 {[%emt 0:00:00]} b6 {[%emt 0:00:00]} 2. d4 {[%emt 0:00:00]} e6 {[%emt 0:00:00]} 3. Nf3 {[%emt 0:00:21]} Bb7 {[%emt 0:00:04]} 4. Bd3 {[%emt 0:00:12]} c5 {[%emt 0:01:57]} 5. c3 {[%emt 0:00:09]} cxd4 {[%emt 0:00:19]} 6. cxd4 {[%emt 0:00:11]} Bb4+ {[%emt 0:00:18]} 7. Nc3 {[%emt 0:04:24] B00: Queen's Fianchetto Defence, Nimzowitsch Defence} (7. Bd2 Bxd2+ 8. Nbxd2 Ne7 9. e5 h6 10. Ne4 O-O 11. b4 Nf5 12. g4 Nh4 13. g5 Bxe4 14. Bxe4 Nxf3+ 15. Bxf3 {0-1 (27) Muha,M (2362)-Robulj,N (2297) Grohote 2018}) 7... Ne7 {[%emt 0:00:13]} 8. O-O {[%emt 0:00:36]} O-O {[%emt 0:01:03]} 9. Bg5 {[%emt 0:06:26]} Bxc3 {[%emt 0:03:34]} 10. bxc3 {[%emt 0:00:08]} f6 {[%emt 0:00:14]} 11. Bh4 {[%emt 0:01:45]} Ng6 {[%emt 0:09:04]} 12. Bg3 {[%emt 0:00:08]} d6 $146 {[%emt 0:01:20]} ({Predecessor:} 12... Nc6 13. Re1 Rc8 14. Bd6 Rf7 {1-0 (58) Osinga,A (1858)-Dubbeldam,M (1364) Rotterdam 2014}) 13. Qb3 {[%emt 0:08:37]} d5 {[%emt 0:07:29]} 14. Rfe1 {[%emt 0:00:32]} Re8 {[%emt 0:07:23]} 15. h4 {[%emt 0:01:46]} Nc6 {[%emt 0:01:53]} 16. h5 {[%emt 0:16:40]} ({White should try} 16. e5 $16) 16... Nf8 {[%emt 0:00:59]} (16... Na5 $11 17. Qc2 dxe4 18. Bxe4 (18. hxg6 exd3 19. gxh7+ Kxh7 $11) 18... Bxe4 19. Rxe4 (19. Qxe4 Nf8 $14) 19... Nf8) 17. h6 {[%emt 0:03:27]} g5 {[%emt 0:03:51]} (17... Na5 $14 18. Qc2 dxe4 19. Bxe4 Bxe4 20. Qxe4 (20. Rxe4 g5 $14) 20... Qd5) 18. exd5 {[%emt 0:02:12]} Na5 $2 {[%emt 0:02:48]} (18... Qxd5 $16 {was necessary.} 19. Qxd5 exd5) 19. Qc2 {[%emt 0:00:35]} Bxd5 {[%emt 0:00:33] [#]} 20. Bxh7+ $1 {[%emt 0:00:51]} Kh8 {[%emt 0:01:00]} 21. Nxg5 {[%emt 0:18:26]} Qd7 {[%emt 0:03:15]} 22. Bd3 {[%emt 0:01:30]} fxg5 {[%emt 0:02:53]} 23. Be5+ {[%emt 0:05:27]} Kg8 {[%emt 0:00:49]} 24. Re3 {[%emt 0:00:29]} Nc6 {[%emt 0:11:50]} 25. Bf6 {[%emt 0:09:55]} (25. c4 $18) 25... Re7 $2 {[%emt 0:03:51]} (25... Qf7 26. Bxg5 e5) 26. Rg3 {[%emt 0:01:12]} Kf7 {[%emt 0:05:04]} 27. Bxg5 {[%emt 0:00:17]} e5 {[%emt 0:04:51]} 28. Bxe7 {[%emt 0:04:42]} Nxe7 {[%emt 0:00:26]} 29. dxe5 {[%emt 0:01:07]} Qc6 {[%emt 0:05:49]} 30. Rg7+ {[%emt 0:02:05]} Ke8 {[%emt 0:04:16]} 31. c4 {[%emt 0:02:14]} Bf7 {[%emt 0:02:40] [#]} 32. Be4 $1 {[%emt 0:01:12] Skewer} Qxh6 {[%emt 0:00:20]} 33. Rxf7 {[%emt 0:00:07]} Rd8 {[%emt 0:00:47]} 34. Rf6 {[%emt 0:00:22]} Qg5 {[%emt 0:01:30]} 35. Qa4+ {[%emt 0:03:00]} Nd7 {[%emt 0:00:50]} 36. Rd1 {[%emt 0:00:49]} Qxe5 {[%emt 0:01:20]} 37. Bg6+ {[%emt 0:00:36]} Nxg6 {[%emt 0:00:56]} 38. Rxg6 {[%emt 0:00:07]} Ke7 {[%emt 0:02:35]} 39. Qxa7 {[%emt 0:01:17]} Qh5 {[%emt 0:01:19]} 40. Rg7+ {[%emt 0:00:27]} 1-0

[Event "GER-ch-Seniors-50 2019"]
[Site "Radebeul"]
[Date "2019.05.04"]
[Round "9.6"]
[White "Wenner, Tobias"]
[Black "Loew, Gerald"]
[Result "0-1"]
[ECO "A88"]
[WhiteElo "2108"]
[BlackElo "2157"]
[Annotator "NA RC"]
[PlyCount "80"]
[EventDate "2019.04.26"]
[EventType "swiss"]
[EventCountry "GER"]
[SourceTitle "playchess.com"]
[Source "ChessBase"]
[SourceQuality "1"]
[TimeControl "40/5400+30:1800+30"]

{[%evp 9,78,24,32767,32767,32767,32767,32767,32767,32767,32767,38,22,32767,32767,35,13,11,0,0,0,4,-82,-80,-90,-88,32767,-100,32767,32767,-51,-52,-106,-77,32767,32767,32767,32767,-68,32767,32767,-67,32767,-109,32767,-189,-183,32767,32767,32767,-212,-212,-250,-260,-288,32767,32767,-308,32767,32767,32767,-504,-565,32767,32767,32767,32767,32767,32767,-1207,-773,-626]} 1. Nf3 {[%emt 0:00:00]} d6 {[%emt 0:00:00]} 2. d4 {[%emt 0:00:00]} f5 {[%emt 0:00:18]} 3. g3 {[%emt 0:00:19]} Nf6 {[%emt 0:00:23]} 4. Bg2 {[%emt 0:00:22]} g6 {[%emt 0:00:20]} 5. O-O {[%emt 0:00:17]} Bg7 {[%emt 0:00:09]} 6. c4 {[%emt 0:00:09]} O-O {[%emt 0:00:13]} 7. Nc3 {[%emt 0:00:03]} c6 {[%emt 0:00:36]} 8. Re1 {[%emt 0:00:14]} Ne4 {[%emt 0:01:12]} 9. Qc2 {[%emt 0:00:10]} Nxc3 {[%emt 0:00:31] A88: Dutch Defence: Leningrad System: 5 Nf3 0-0 6 0-0 d6 7 Nc3 c6} 10. bxc3 {[%emt 0:00:11]} e5 {[%emt 0:01:36]} 11. dxe5 {[%emt 0:00:16]} (11. e4 fxe4 12. Qxe4 Bf5 13. Qe3 Nd7 14. Ba3 Nb6 15. Qe2 Re8 16. dxe5 dxe5 17. Rad1 {0-1 (34) Vachier Lagrave,M (2745)-Ponomariov,R (2731) Beijing 2013}) 11... dxe5 {[%emt 0:00:10]} 12. Ba3 {[%emt 0:00:06]} Re8 {[%emt 0:00:39]} 13. Red1 {[%emt 0:03:17]} Qf6 $146 {[%emt 0:11:18]} ({Predecessor:} 13... Qa5 14. Bd6 Na6 15. Rab1 Nc5 16. Nd2 e4 17. Bxc5 Qxc5 {0-1 (44) Geyer,M (1881)-Wittenbrock,F (2049) Zuerich 2016}) 14. e4 {[%emt 0:27:22]} Na6 {[%emt 0:11:51]} 15. Bd6 {[%emt 0:09:38] [#]} (15. Rd6 $11 {remains equal.} Be6 16. Qb3) 15... Bf8 $1 {[%emt 0:08:20]} 16. c5 {[%emt 0:00:41]} Nxc5 {[%emt 0:01:00]} 17. Bxf8 {[%emt 0:03:00]} Rxf8 {[%emt 0:01:33]} 18. exf5 {[%emt 0:00:21]} Bxf5 {[%emt 0:02:00]} 19. Qe2 {[%emt 0:00:52]} e4 {[%emt 0:16:50]} 20. Nd4 {[%emt 0:03:08]} Rae8 {[%emt 0:07:04]} 21. Qc4+ {[%emt 0:02:34]} Ne6 {[%emt 0:00:53]} 22. Re1 {[%emt 0:07:00]} Kh8 {[%emt 0:04:44]} 23. Nxe6 {[%emt 0:06:30]} Rxe6 {[%emt 0:02:07]} 24. h3 g5 {[%emt 0:03:59]} 25. Rad1 {[%emt 0:09:14] [#]} Bxh3 $1 {[%emt 0:07:39] Discovered Attack} 26. Qd4 {[%emt 0:01:48]} Bxg2 {[%emt 0:01:29]} 27. Kxg2 {[%emt 0:00:06]} Qxd4 {[%emt 0:01:29]} 28. Rxd4 {[%emt 0:00:02]} Rfe8 {[%emt 0:00:58]} 29. Rd7 {[%emt 0:03:01]} R8e7 {[%emt 0:01:00]} 30. Rxe7 {[%emt 0:00:44]} Rxe7 {[%emt 0:00:26]} 31. g4 {[%emt 0:00:02]} Kg7 {[%emt 0:00:30]} 32. Re3 {[%emt 0:03:48]} Kf6 {[%emt 0:02:42]} 33. Kf1 {[%emt 0:00:50]} Ke5 {[%emt 0:01:52]} 34. f3 {[%emt 0:02:43] [#]} Kf4 $1 {[%emt 0:01:52]} 35. Kf2 {[%emt 0:00:06]} Re5 {[%emt 0:00:12]} 36. fxe4 {[%emt 0:00:35]} Rxe4 {[%emt 0:03:06]} 37. Rd3 {[%emt 0:00:13]} Ra4 {[%emt 0:02:01]} 38. Rh3 {[%emt 0:03:39]} Rxa2+ {[%emt 0:00:19]} 39. Ke1 $19 {[%emt 0:00:10]} Kxg4 {[%emt 0:01:28]} 40. Rxh7 {[%emt 0:00:10]} Rb2 {[%emt 0:00:18]} 0-1